lending/lending_fUSD_20241115
["ID","MTS","AMOUNT","RATE_DAILY","PERIOD"]
[342282907,1731693062883,-500.0,9.876e-05,2]
[342282908,1731693062893,-555.64955256,9.876e-05,2]
[342282909,1731693062903,-414.39,9.876e-05,2]
[342282910,1731693062912,-862.77,9.876e-05,2]
[342282911,1731693062921,-862.77,9.876e-05,2]
[342282912,1731693062931,-500.0,9.876e-05,2]
[342282913,1731693062941,-500.0,9.876e-05,2]
[342282914,1731693062950,-500.0,9.876e-05,2]
[342282915,1731693062960,-500.0,9.876e-05,2]
[342282916,1731693062969,-500.0,9.876e-05,2]
[342282917,1731693062979,-500.0,9.876e-05,2]
[342282918,1731693062989,-500.0,9.876e-05,2]
[342282919,1731693063002,-500.0,9.876e-05,2]
[342282920,1731693063011,-500.0,9.876e-05,2]
[342282921,1731693063021,-500.0,9.876e-05,2]
[342282922,1731693063031,-611.17,9.876e-05,2]
[342282923,1731693063042,-500.0,9.876e-05,2]
[342282924,1731693063052,-2646.98,9.876e-05,2]
[342282925,1731693063062,-500.0,9.876e-05,2]
[342282926,1731693063071,-500.0,9.876e-05,2]
[342282927,1731693063081,-500.0,9.876e-05,2]
[342282928,1731693063091,-500.0,9.876e-05,2]
[342282929,1731693063101,-500.0,9.876e-05,2]
[342282930,1731693063110,-2527.05,9.876e-05,2]
[342282931,1731693063120,-206.08859474,9.876e-05,2]
[342282932,1731693063130,-649.44,9.876e-05,2]
[342282933,1731693063140,-649.44,9.876e-05,2]
[342282934,1731693063150,-500.0,9.876e-05,2]
[342282935,1731693063160,-500.0,9.876e-05,2]
[342282936,1731693063169,-4707.45,9.876e-05,2]
[342282937,1731693063179,-664.34,9.876e-05,2]
[342282938,1731693063189,-664.34,9.876e-05,2]
[342282939,1731693063199,-1134.89,9.876e-05,2]
[342282940,1731693063209,-791.35,9.876e-05,2]
[342282941,1731693063219,-500.0,9.876e-05,2]
[342282942,1731693063228,-791.35,9.876e-05,2]
[342282943,1731693063238,-500.0,9.876e-05,2]
[342282944,1731693063250,-591.11,9.876e-05,2]
[342282945,1731693063259,-500.0,9.876e-05,2]
[342282946,1731693063269,-591.11,9.876e-05,2]
[342282947,1731693063279,-500.0,9.876e-05,2]
[342282948,1731693063288,-1108.76,9.876e-05,2]
[342282949,1731693063297,-643.66,9.876e-05,2]
[342282950,1731693063307,-500.0,9.876e-05,2]
[342282951,1731693063316,-1108.76,9.876e-05,2]
[342282952,1731693063326,-643.66,9.876e-05,2]
[342282953,1731693063335,-500.0,9.876e-05,2]
[342282954,1731693063345,-500.0,9.876e-05,2]
[342282955,1731693063355,-705.33,9.876e-05,2]
[342282956,1731693063364,-500.0,9.876e-05,2]
[342282957,1731693063373,-1072.1,9.876e-05,2]
[342282958,1731693063383,-1072.1,9.876e-05,2]
[342282959,1731693063392,-500.0,9.876e-05,2]
[342282960,1731693063402,-900.72,9.876e-05,2]
[342282961,1731693063411,-500.0,9.876e-05,2]
[342282962,1731693063420,-900.72,9.876e-05,2]
[342282963,1731693063429,-500.0,9.876e-05,2]
[342282964,1731693063438,-500.0,9.876e-05,2]
[342282965,1731693063447,-500.0,9.876e-05,2]
[342282966,1731693063456,-4309.06,9.876e-05,2]
[342282967,1731693063466,-500.0,9.876e-05,2]
[342282968,1731693063476,-500.0,9.876e-05,2]
[342282969,1731693063486,-500.0,9.876e-05,2]
[342282970,1731693063498,-500.0,9.876e-05,2]
[342282971,1731693063507,-613.15,9.876e-05,2]
[342282972,1731693063517,-613.15,9.876e-05,2]
[342282973,1731693063527,-835.74,9.876e-05,2]
[342282974,1731693063537,-4334.47,9.876e-05,2]
[342282975,1731693063546,-835.74,9.876e-05,2]
[342282976,1731693063556,-4334.47,9.876e-05,2]
[342282977,1731693063565,-500.0,9.876e-05,2]
[342282978,1731693063574,-500.0,9.876e-05,2]
[342282979,1731693063586,-151.48668822,9.876e-05,2]
[342282980,1731693063596,-500.0,9.876e-05,2]
[342282981,1731693063606,-1774.45,9.876e-05,2]
[342282982,1731693063615,-500.0,9.876e-05,2]
[342282983,1731693063625,-500.0,9.876e-05,2]
[342282984,1731693063635,-647.14,9.876e-05,2]
[342282985,1731693063644,-647.14,9.876e-05,2]
[342282986,1731693063654,-779.26,9.876e-05,2]
[342282987,1731693063665,-560.28,9.876e-05,2]
[342282988,1731693063675,-1239.32,9.876e-05,2]
[342282989,1731693063685,-1239.32,9.876e-05,2]
[342282990,1731693063694,-500.0,9.876e-05,2]
[342282991,1731693063704,-500.0,9.876e-05,2]
[342282992,1731693063714,-3031.69,9.876e-05,2]
[342282993,1731693063724,-3031.69,9.876e-05,2]
[342282994,1731693063733,-500.0,9.876e-05,2]
[342282995,1731693063743,-500.0,9.876e-05,2]
[342282996,1731693063753,-3262.79,9.876e-05,2]
[342282997,1731693063763,-500.0,9.876e-05,2]
[342282998,1731693063773,-1059.7,9.876e-05,2]
[342282999,1731693063783,-500.0,9.876e-05,2]
[342283000,1731693063793,-1059.7,9.876e-05,2]
[342283001,1731693063803,-500.0,9.876e-05,2]
[342283002,1731693063813,-622.63,9.876e-05,2]
[342283003,1731693063823,-745.76,9.876e-05,2]
[342283004,1731693063834,-745.76,9.876e-05,2]
[342283005,1731693063843,-566.31,9.876e-05,2]
[342283006,1731693063854,-566.31,9.876e-05,2]
[342283007,1731693063864,-3495.18,9.876e-05,2]
[342283008,1731693063874,-500.0,9.876e-05,2]
[342283009,1731693063884,-500.0,9.876e-05,2]
[342283010,1731693063894,-500.0,9.876e-05,2]
[342283011,1731693063904,-1643.24,9.876e-05,2]
[342283012,1731693063913,-1643.24,9.876e-05,2]
[342283013,1731693063923,-645.45,9.876e-05,2]
[342283014,1731693063933,-500.0,9.876e-05,2]
[342283015,1731693063944,-500.0,9.876e-05,2]
[342283016,1731693063953,-645.45,9.876e-05,2]
[342283017,1731693063963,-500.0,9.876e-05,2]
[342283018,1731693063973,-9585.98,9.876e-05,2]
[342283019,1731693063982,-9585.98,9.876e-05,2]
[342283020,1731693063992,-500.0,9.876e-05,2]
[342283021,1731693064003,-500.0,9.876e-05,2]
[342283022,1731693064013,-500.0,9.876e-05,2]
[342283023,1731693064023,-500.0,9.876e-05,2]
[342283024,1731693064033,-2343.61,9.876e-05,2]
[342283025,1731693064043,-2343.61,9.876e-05,2]
[342283026,1731693064053,-500.0,9.876e-05,2]
[342283027,1731693064063,-719.6,9.876e-05,2]
[342283028,1731693064072,-500.0,9.876e-05,2]
[342283029,1731693064082,-719.6,9.876e-05,2]
[342283030,1731693064091,-500.0,9.876e-05,2]
[342283031,1731693064102,-500.0,9.876e-05,2]
[342283032,1731693064112,-500.0,9.876e-05,2]
[342283033,1731693064122,-500.0,9.876e-05,2]
[342283034,1731693064131,-500.0,9.876e-05,2]
[342283035,1731693064141,-500.0,9.876e-05,2]
[342283036,1731693064150,-3312.39,9.876e-05,2]
[342283037,1731693064160,-783.03,9.876e-05,2]
[342283038,1731693064170,-1655.62,9.876e-05,2]
[342283039,1731693064179,-3033.29,9.876e-05,2]
[342283040,1731693064189,-783.03,9.876e-05,2]
[342283041,1731693064199,-1655.62,9.876e-05,2]
[342283042,1731693064208,-500.0,9.876e-05,2]
[342283043,1731693064217,-500.0,9.876e-05,2]
[342283044,1731693064227,-500.0,9.876e-05,2]
[342283045,1731693064237,-1315.0,9.876e-05,2]
[342283046,1731693064248,-1315.0,9.876e-05,2]
[342283047,1731693064258,-1453.45,9.876e-05,2]
[342283048,1731693064267,-669.46,9.876e-05,2]
[342283049,1731693064277,-1453.45,9.876e-05,2]
[342283050,1731693064286,-669.46,9.876e-05,2]
[342283051,1731693064295,-2775.07,9.876e-05,2]
[342283052,1731693064304,-500.0,9.876e-05,2]
[342283053,1731693064314,-720.82,9.876e-05,2]
[342283054,1731693064323,-720.82,9.876e-05,2]
[342283055,1731693064332,-2048.44,9.876e-05,2]
[342283056,1731693064342,-2048.44,9.876e-05,2]
[342283057,1731693064351,-500.0,9.876e-05,2]
[342283058,1731693064360,-500.0,9.876e-05,2]
[342283059,1731693064370,-904.8,9.876e-05,2]
[342283060,1731693064379,-500.0,9.876e-05,2]
[342283061,1731693064388,-904.8,9.876e-05,2]
[342283062,1731693064397,-500.0,9.876e-05,2]
[342283063,1731693064406,-500.0,9.876e-05,2]
[342283064,1731693064416,-500.0,9.876e-05,2]
[342283065,1731693064426,-500.0,9.876e-05,2]
[342283066,1731693064436,-1265.74,9.876e-05,2]
[342283067,1731693064446,-1265.74,9.876e-05,2]
[342283068,1731693064455,-679.16,9.876e-05,2]
[342283069,1731693064464,-1167.23,9.876e-05,2]
[342283070,1731693064473,-679.16,9.876e-05,2]
[342283071,1731693064483,-1167.23,9.876e-05,2]
[342283072,1731693064492,-536.99,9.876e-05,2]
[342283073,1731693064506,-500.0,9.876e-05,2]
[342283074,1731693064516,-500.0,9.876e-05,2]
[342283075,1731693064525,-500.0,9.876e-05,2]
[342283076,1731693064535,-562.31,9.876e-05,2]
[342283077,1731693064545,-742.37,9.876e-05,2]
[342283078,1731693064555,-562.31,9.876e-05,2]
[342283079,1731693064564,-500.0,9.876e-05,2]
[342283080,1731693064573,-1191.97,9.876e-05,2]
[342283081,1731693064584,-1191.97,9.876e-05,2]
[342283082,1731693064595,-1270.17,9.876e-05,2]
[342283083,1731693064604,-648.02,9.876e-05,2]
[342283084,1731693064614,-648.02,9.876e-05,2]
[342283085,1731693064624,-500.0,9.876e-05,2]
[342283086,1731693064634,-500.0,9.876e-05,2]
[342283087,1731693064644,-578.15,9.876e-05,2]
[342283088,1731693064654,-500.0,9.876e-05,2]
[342283089,1731693064665,-500.0,9.876e-05,2]
[342283090,1731693064675,-500.0,9.876e-05,2]
[342283091,1731693064684,-521.91,9.877e-05,2]
[342283092,1731693064693,-500.0,9.877e-05,2]
[342283093,1731693064703,-500.0,9.877e-05,2]
[342283094,1731693064713,-788.81,9.877e-05,2]
[342283095,1731693064722,-500.0,9.877e-05,2]
[342283096,1731693064732,-500.0,9.877e-05,2]
[342283097,1731693064742,-1510.42,9.877e-05,2]
[342283098,1731693064754,-500.0,9.877e-05,2]
[342283099,1731693064763,-683.02,9.877e-05,2]
[342283100,1731693064773,-500.0,9.877e-05,2]
[342283101,1731693064782,-500.0,9.877e-05,2]
[342283102,1731693064793,-500.0,9.877e-05,2]
[342283103,1731693064802,-373.18911666,9.877e-05,2]
[342283104,1731693064812,-500.0,9.877e-05,2]
[342283105,1731693064822,-1350.68,9.877e-05,2]
[342283106,1731693064831,-1217.05,9.877e-05,2]
[342283107,1731693064841,-1272.89,9.877e-05,2]
[342283108,1731693064851,-500.0,9.877e-05,2]
[342283109,1731693064860,-950.11,9.877e-05,2]
[342283110,1731693064870,-500.0,9.877e-05,2]
[342283111,1731693064879,-699.35,9.877e-05,2]
[342283112,1731693064888,-685.75,9.877e-05,2]
[342283113,1731693064898,-1407.47,9.877e-05,2]
[342283114,1731693064907,-2282.85,9.877e-05,2]
[342283115,1731693064916,-646.82,9.877e-05,2]
[342283116,1731693064925,-500.0,9.877e-05,2]
[342283117,1731693064934,-500.0,9.877e-05,2]
[342283118,1731693064943,-500.0,9.877e-05,2]
[342283119,1731693064953,-535.44,9.877e-05,2]
[342283120,1731693064962,-500.0,9.877e-05,2]
[342283121,1731693064971,-2649.83,9.877e-05,2]
[342283122,1731693064981,-500.0,9.877e-05,2]
[342283123,1731693064990,-2105.84,9.877e-05,2]
[342283124,1731693065002,-500.0,9.877e-05,2]
[342283125,1731693065011,-1480.23,9.877e-05,2]
[342283126,1731693065021,-1087.32,9.877e-05,2]
[342283127,1731693065030,-500.0,9.877e-05,2]
[342283128,1731693065040,-798.96,9.877e-05,2]
[342283129,1731693065049,-500.0,9.877e-05,2]
[342283130,1731693065058,-500.0,9.877e-05,2]
[342283131,1731693065067,-500.0,9.877e-05,2]
[342283132,1731693065076,-876.19,9.877e-05,2]
[342283133,1731693065085,-664.27,9.877e-05,2]
[342283134,1731693065095,-669.06,9.877e-05,2]
[342283135,1731693065104,-1004.18,9.877e-05,2]
[342283136,1731693065113,-500.0,9.877e-05,2]
[342283137,1731693065123,-730.11,9.877e-05,2]
[342283138,1731693065132,-500.0,9.877e-05,2]
[342283139,1731693065141,-617.61,9.877e-05,2]
[342283140,1731693065150,-809.97,9.877e-05,2]
[342283141,1731693065160,-500.0,9.877e-05,2]
[342283142,1731693065168,-1647.29,9.877e-05,2]
[342283143,1731693065178,-625.60724048,9.877e-05,2]
[342283144,1731693065187,-535.64,9.877e-05,2]
[342283145,1731693065196,-831.93,9.877e-05,2]
[342283146,1731693065206,-500.0,9.877e-05,2]
[342283147,1731693065215,-500.0,9.877e-05,2]
[342283148,1731693065225,-500.0,9.877e-05,2]
[342283149,1731693065234,-614.16,9.877e-05,2]
[342283150,1731693065244,-500.0,9.877e-05,2]
[342283151,1731693065257,-504.29,9.877e-05,2]
[342283152,1731693065266,-500.0,9.877e-05,2]
[342283153,1731693065277,-593.96,9.877e-05,2]
[342283154,1731693065286,-1724.68,9.877e-05,2]
[342283155,1731693065295,-1186.02,9.877e-05,2]
[342283156,1731693065305,-1348.51,9.877e-05,2]
[342283157,1731693065314,-500.0,9.877e-05,2]
[342283158,1731693065323,-500.0,9.877e-05,2]
[342283159,1731693065332,-1198.98,9.877e-05,2]
[342283160,1731693065342,-500.0,9.877e-05,2]
[342283161,1731693065351,-663.37,9.877e-05,2]
[342283162,1731693065360,-523.98,9.877e-05,2]
[342283163,1731693065369,-1165.85,9.877e-05,2]
[342283164,1731693065378,-500.0,9.877e-05,2]
[342283165,1731693065387,-500.0,9.877e-05,2]
[342283166,1731693065396,-500.0,9.877e-05,2]
[342283167,1731693065405,-500.0,9.877e-05,2]
[342283168,1731693065414,-500.0,9.877e-05,2]
[342283169,1731693065423,-500.0,9.877e-05,2]
[342283170,1731693065433,-500.0,9.877e-05,2]
[342283171,1731693065442,-500.0,9.877e-05,2]
[342283172,1731693065451,-1052.94,9.877e-05,2]
[342283173,1731693065460,-640.13,9.877e-05,2]
[342283174,1731693065470,-500.0,9.877e-05,2]
[342283175,1731693065479,-500.0,9.877e-05,2]
[342283176,1731693065489,-500.0,9.877e-05,2]
[342283177,1731693065498,-500.0,9.877e-05,2]
[342283178,1731693065508,-500.0,9.877e-05,2]
[342283179,1731693065517,-500.0,9.877e-05,2]
[342283180,1731693065526,-500.0,9.877e-05,2]
[342283181,1731693065535,-500.0,9.877e-05,2]
[342283182,1731693065546,-802.96,9.877e-05,2]
[342283183,1731693065555,-1113.6,9.877e-05,2]
[342283184,1731693065564,-500.0,9.877e-05,2]
[342283185,1731693065574,-500.0,9.877e-05,2]
[342283186,1731693065586,-629.1,9.877e-05,2]
[342283187,1731693065596,-500.0,9.877e-05,2]
[342283188,1731693065606,-500.0,9.877e-05,2]
[342283189,1731693065615,-1073.04,9.877e-05,2]
[342283190,1731693065742,-500.0,9.877e-05,2]
[342283191,1731693065762,-500.0,9.877e-05,2]
[342283192,1731693065772,-500.0,9.877e-05,2]
[342283193,1731693065782,-507.48,9.877e-05,2]
[342283194,1731693065791,-500.0,9.877e-05,2]
[342283195,1731693065800,-912.28,9.877e-05,2]
[342283196,1731693065810,-500.0,9.877e-05,2]
[342283197,1731693065819,-2578.72,9.877e-05,2]
[342283198,1731693065828,-500.0,9.877e-05,2]
[342283199,1731693065837,-962.37,9.877e-05,2]
[342283200,1731693065848,-500.0,9.877e-05,2]
[342283201,1731693065857,-986.95,9.877e-05,2]
[342283202,1731693065866,-500.0,9.877e-05,2]
[342283203,1731693065876,-500.0,9.877e-05,2]
[342283204,1731693065885,-891.71,9.877e-05,2]
[342283205,1731693065895,-1253.33,9.877e-05,2]
[342283206,1731693065904,-2776.85,9.877e-05,2]
[342283207,1731693065915,-763.37,9.877e-05,2]
[342283208,1731693065924,-500.0,9.877e-05,2]
[342283209,1731693065934,-500.0,9.877e-05,2]
[342283210,1731693065944,-500.0,9.877e-05,2]
[342283211,1731693065953,-285.01436025,9.877e-05,2]
[342283212,1731693065963,-500.0,9.877e-05,2]
[342283213,1731693065973,-1448.9,9.877e-05,2]
[342283214,1731693065983,-500.0,9.877e-05,2]
[342283215,1731693065993,-2180.49,9.877e-05,2]
[342283216,1731693066006,-718.99,9.877e-05,2]
[342283217,1731693066016,-1083.73,9.877e-05,2]
[342283218,1731693066025,-500.0,9.877e-05,2]
[342283219,1731693066034,-500.0,9.877e-05,2]
[342283220,1731693066043,-1044.28,9.877e-05,2]
[342283221,1731693066053,-500.0,9.877e-05,2]
[342283222,1731693066062,-500.0,9.877e-05,2]
[342283223,1731693066071,-662.53,9.877e-05,2]
[342283224,1731693066080,-500.0,9.877e-05,2]
[342283225,1731693066089,-2056.56,9.877e-05,2]
[342283226,1731693066099,-500.0,9.877e-05,2]
[342283227,1731693066108,-999.64,9.877e-05,2]
[342283228,1731693066118,-500.0,9.877e-05,2]
[342283229,1731693066127,-1466.6,9.877e-05,2]
[342283230,1731693066137,-870.05,9.877e-05,2]
[342283231,1731693066146,-624.27,9.877e-05,2]
[342283232,1731693066156,-557.31367519,9.877e-05,2]
[342283233,1731693066165,-500.0,9.877e-05,2]
[342283234,1731693066174,-2570.6,9.877e-05,2]
[342283235,1731693066184,-573.49,9.877e-05,2]
[342283236,1731693066193,-3087.65,9.877e-05,2]
[342283237,1731693066203,-500.0,9.877e-05,2]
[342283238,1731693066212,-500.0,9.877e-05,2]
[342283239,1731693066222,-500.0,9.877e-05,2]
[342283240,1731693066231,-500.0,9.877e-05,2]
[342283241,1731693066240,-708.64,9.877e-05,2]
[342283242,1731693066251,-500.0,9.877e-05,2]
[342283243,1731693066260,-2474.19,9.877e-05,2]
[342283244,1731693066269,-501.1,9.877e-05,2]
[342283245,1731693066279,-898.05,9.877e-05,2]
[342283246,1731693066288,-500.0,9.877e-05,2]
[342283247,1731693066297,-500.0,9.877e-05,2]
[342283248,1731693066306,-500.0,9.877e-05,2]
[342283249,1731693066316,-518.32685098,9.877e-05,2]
[342283250,1731693066325,-500.0,9.877e-05,2]
[342283251,1731693066334,-500.0,9.877e-05,2]
[342283252,1731693066344,-1042.49,9.877e-05,2]
[342283253,1731693066354,-909.83,9.877e-05,2]
[342283254,1731693066364,-605.58437857,9.877e-05,2]
[342283255,1731693066373,-500.0,9.877e-05,2]
[342283256,1731693066383,-500.0,9.877e-05,2]
[342283257,1731693066393,-1028.83,9.877e-05,2]
[342283258,1731693066402,-631.68,9.877e-05,2]
[342283259,1731693066412,-2090.83,9.877e-05,2]
[342283260,1731693066421,-241.53972862,9.877e-05,2]
[342283261,1731693066431,-2121.02,9.877e-05,2]
[342283262,1731693066440,-500.0,9.877e-05,2]
[342283263,1731693066450,-500.0,9.877e-05,2]
[342283264,1731693066460,-500.0,9.877e-05,2]
[342283265,1731693066470,-1057.69,9.877e-05,2]
[342283266,1731693066480,-500.0,9.877e-05,2]
[342283267,1731693066489,-500.0,9.877e-05,2]
[342283268,1731693066499,-3922.75,9.877e-05,2]
[342283269,1731693066509,-500.0,9.877e-05,2]
[342283270,1731693066518,-1419.57,9.877e-05,2]
[342283271,1731693066528,-500.0,9.877e-05,2]
[342283272,1731693066537,-1259.21,9.877e-05,2]
[342283273,1731693066546,-500.0,9.877e-05,2]
[342283274,1731693066556,-500.0,9.877e-05,2]
[342283275,1731693066565,-500.0,9.877e-05,2]
[342283276,1731693066575,-586.94950792,9.877e-05,2]
[342283277,1731693066585,-842.13,9.877e-05,2]
[342283278,1731693066596,-500.0,9.877e-05,2]
[342283279,1731693066605,-558.37,9.877e-05,2]
[342283280,1731693066615,-500.0,9.877e-05,2]
[342283281,1731693066624,-1134.14,9.877e-05,2]
[342283282,1731693066634,-500.0,9.877e-05,2]
[342283283,1731693066643,-500.0,9.877e-05,2]
[342283284,1731693066653,-500.0,9.877e-05,2]
[342283285,1731693066664,-500.0,9.877e-05,2]
[342283286,1731693066673,-500.0,9.877e-05,2]
[342283287,1731693066683,-513.43,9.877e-05,2]
[342283288,1731693066693,-767.16,9.877e-05,2]
[342283289,1731693066702,-500.0,9.877e-05,2]
[342283290,1731693066712,-500.0,9.877e-05,2]
[342283291,1731693066721,-500.0,9.877e-05,2]
[342283292,1731693066731,-500.0,9.877e-05,2]
[342283293,1731693066741,-1783.49,9.877e-05,2]
[342283294,1731693066752,-547.12,9.877e-05,2]
[342283295,1731693066762,-500.0,9.877e-05,2]
[342283296,1731693066772,-500.0,9.877e-05,2]
[342283297,1731693066782,-500.0,9.877e-05,2]
[342283298,1731693066792,-500.0,9.877e-05,2]
[342283299,1731693066801,-500.0,9.877e-05,2]
[342283300,1731693066810,-1060.41,9.877e-05,2]
[342283301,1731693066820,-888.89,9.877e-05,2]
[342283302,1731693066830,-575.44,9.877e-05,2]
[342283303,1731693066839,-806.43,9.877e-05,2]
[342283304,1731693066849,-500.0,9.877e-05,2]
[342283305,1731693066858,-500.0,9.877e-05,2]
[342283306,1731693066868,-500.0,9.877e-05,2]
[342283307,1731693066879,-500.0,9.877e-05,2]
[342283308,1731693066889,-500.0,9.877e-05,2]
[342283309,1731693066898,-736.38,9.877e-05,2]
[342283310,1731693066907,-500.0,9.877e-05,2]
[342283311,1731693066917,-500.0,9.877e-05,2]
[342283312,1731693066926,-1472.11,9.877e-05,2]
[342283313,1731693066936,-500.0,9.877e-05,2]
[342283314,1731693066946,-568.06,9.877e-05,2]
[342283315,1731693066955,-500.0,9.877e-05,2]
[342283316,1731693066965,-500.0,9.877e-05,2]
[342283317,1731693066974,-500.0,9.877e-05,2]
[342283318,1731693066984,-500.0,9.877e-05,2]
[342283319,1731693066993,-500.0,9.877e-05,2]
[342283320,1731693067003,-2054.9,9.877e-05,2]
[342283321,1731693067012,-500.0,9.877e-05,2]
[342283322,1731693067022,-748.19,9.877e-05,2]
[342283323,1731693067032,-722.46,9.877e-05,2]
[342283324,1731693067041,-1013.83,9.877e-05,2]
[342283325,1731693067050,-500.0,9.877e-05,2]
[342283326,1731693067060,-500.0,9.877e-05,2]
[342283327,1731693067069,-500.0,9.877e-05,2]
[342283328,1731693067078,-707.39,9.877e-05,2]
[342283329,1731693067088,-638.06,9.877e-05,2]
[342283330,1731693067097,-500.0,9.877e-05,2]
[342283331,1731693067106,-1021.7,9.877e-05,2]
[342283332,1731693067116,-500.0,9.877e-05,2]
[342283333,1731693067125,-742.68,9.877e-05,2]
[342283334,1731693067134,-500.0,9.877e-05,2]
[342283335,1731693067143,-500.0,9.877e-05,2]
[342283336,1731693067153,-2476.19,9.877e-05,2]
[342283337,1731693067162,-500.0,9.877e-05,2]
[342283338,1731693067172,-1138.52,9.877e-05,2]
[342283339,1731693067181,-523.59,9.877e-05,2]
[342283340,1731693067191,-865.77,9.877e-05,2]
[342283341,1731693067201,-867.42,9.877e-05,2]
[342283342,1731693067210,-500.0,9.877e-05,2]
[342283343,1731693067221,-500.0,9.877e-05,2]
[342283344,1731693067230,-500.0,9.877e-05,2]
[342283345,1731693067240,-541.9,9.877e-05,2]
[342283346,1731693067251,-500.0,9.877e-05,2]
[342283347,1731693067260,-500.0,9.877e-05,2]
[342283348,1731693067269,-500.0,9.877e-05,2]
[342283349,1731693067278,-622.45,9.877e-05,2]
[342283350,1731693067288,-164.74156387,9.877e-05,2]
[342283351,1731693067297,-3832.17,9.877e-05,2]
[342283352,1731693067307,-878.07,9.877e-05,2]
[342283353,1731693067316,-500.0,9.877e-05,2]
[342283354,1731693067326,-500.0,9.877e-05,2]
[342283355,1731693067336,-500.0,9.877e-05,2]
[342283356,1731693067345,-500.0,9.877e-05,2]
[342283357,1731693067354,-954.8,9.877e-05,2]
[342283358,1731693067363,-3419.82,9.877e-05,2]
[342283359,1731693067373,-500.0,9.877e-05,2]
[342283360,1731693067382,-500.0,9.877e-05,2]
[342283361,1731693067392,-500.0,9.877e-05,2]
[342283362,1731693067401,-1161.76,9.877e-05,2]
[342283363,1731693067410,-500.0,9.877e-05,2]
[342283364,1731693067419,-823.19,9.877e-05,2]
[342283365,1731693067429,-500.0,9.877e-05,2]
[342283366,1731693067438,-846.81,9.877e-05,2]
[342283367,1731693067447,-3359.91,9.877e-05,2]
[342283368,1731693067457,-500.0,9.877e-05,2]
[342283369,1731693067466,-2410.8,9.877e-05,2]
[342283370,1731693067476,-500.0,9.877e-05,2]
[342283371,1731693067485,-1215.62,9.877e-05,2]
[342283372,1731693067495,-856.06,9.877e-05,2]
[342283373,1731693067506,-532.2,9.877e-05,2]
[342283374,1731693067516,-2838.57,9.877e-05,2]
[342283375,1731693067526,-500.0,9.877e-05,2]
[342283376,1731693067535,-500.0,9.877e-05,2]
[342283377,1731693067544,-1534.1,9.877e-05,2]
[342283378,1731693067553,-500.0,9.877e-05,2]
[342283379,1731693067563,-500.0,9.877e-05,2]
[342283380,1731693067572,-749.39,9.877e-05,2]
[342283381,1731693067582,-1051.73,9.877e-05,2]
[342283382,1731693067594,-500.0,9.877e-05,2]
[342283383,1731693067608,-500.0,9.877e-05,2]
[342283384,1731693067627,-500.0,9.877e-05,2]
[342283385,1731693067636,-500.0,9.877e-05,2]
[342283386,1731693067646,-601.67,9.877e-05,2]
[342283387,1731693067655,-500.0,9.877e-05,2]
[342283388,1731693067667,-500.0,9.877e-05,2]
[342283389,1731693067678,-1224.19,9.877e-05,2]
[342283390,1731693067688,-500.0,9.877e-05,2]
[342283391,1731693067698,-500.0,9.877e-05,2]
[342283392,1731693067707,-500.0,9.877e-05,2]
[342283393,1731693067717,-1197.95,9.877e-05,2]
[342283394,1731693067727,-500.0,9.877e-05,2]
[342283395,1731693067736,-500.0,9.877e-05,2]
[342283396,1731693067746,-500.0,9.877e-05,2]
[342283397,1731693067757,-1519.49,9.877e-05,2]
[342283398,1731693067767,-500.0,9.877e-05,2]
[342283399,1731693067777,-1454.1,9.877e-05,2]
[342283400,1731693067787,-500.0,9.877e-05,2]
[342283401,1731693067797,-333.97930037,9.877e-05,2]
[342283402,1731693067807,-500.0,9.877e-05,2]
[342283403,1731693067816,-500.0,9.877e-05,2]
[342283404,1731693067826,-1136.18,9.877e-05,2]
[342283405,1731693067835,-659.67,9.877e-05,2]
[342283406,1731693067845,-586.62,9.877e-05,2]